bitfinex-derivatives/quotes_BTCF0:USTF0_20250325
["timestamp","ask_amount","ask_price","bid_price","bid_amount"]
[1742905758040,0.53477381,87273.0,87272.0,0.03724]
[1742905759438,0.53577381,87273.0,87272.0,0.04124]
[1742905759638,0.53577381,87273.0,87272.0,0.0734]
[1742905759830,0.53577381,87273.0,87272.0,0.0746]
[1742905761946,0.53577381,87273.0,87272.0,0.3346]
[1742905762127,0.17497381,87273.0,87272.0,0.3346]
[1742905762439,0.17497381,87273.0,87272.0,0.4491705]
[1742905762657,0.17497381,87273.0,87272.0,0.2791705]
[1742905764858,0.17497381,87273.0,87272.0,0.2891705]
[1742905767146,0.17497381,87273.0,87272.0,0.1746]
[1742905767553,0.18645523,87273.0,87272.0,0.0746]
[1742905767757,0.18645523,87273.0,87272.0,0.0406]
[1742905768557,0.18645523,87273.0,87272.0,0.0412]
[1742905770557,0.18645523,87273.0,87272.0,0.0612]
[1742905770757,0.54725523,87273.0,87272.0,0.0612]
[1742905770960,0.54725523,87273.0,87272.0,0.0606]
[1742905771865,0.54725523,87273.0,87272.0,0.0612]
[1742905772069,0.61145523,87273.0,87272.0,0.0612]
[1742905772759,0.61145523,87273.0,87272.0,0.0606]
[1742905773261,0.64295523,87273.0,87272.0,0.0606]
[1742905773462,0.64295523,87273.0,87272.0,0.06128]
[1742905774755,0.64295523,87273.0,87272.0,0.0606]
[1742905778069,0.64295523,87273.0,87272.0,0.029]
[1742905781875,0.64295523,87273.0,87272.0,0.0631]
[1742905782466,0.28215523,87273.0,87272.0,0.0631]
[1742905782665,0.64295523,87273.0,87272.0,0.0631]
[1742905783074,0.64295523,87273.0,87272.0,0.0967]
[1742905784168,0.28215523,87273.0,87272.0,0.0967]
[1742905784379,0.64295523,87273.0,87272.0,0.0967]
[1742905788677,0.28215523,87273.0,87272.0,0.0967]
[1742905788883,0.64295523,87273.0,87272.0,0.0967]
[1742905797596,0.60007381,87273.0,87272.0,0.0967]
[1742905797803,0.56727381,87273.0,87272.0,0.1302]
[1742905799390,0.56727381,87273.0,87272.0,0.13132]
[1742905799590,0.56727381,87273.0,87272.0,0.1302]
[1742905799891,0.56727381,87273.0,87272.0,0.1308]
[1742905800297,0.60007381,87273.0,87272.0,0.1302]
[1742905801696,0.60007381,87273.0,87272.0,0.3447705]
[1742905801697,0.00312001,87273.0,87272.0,0.3447705]
[1742905801898,0.4095,87274.0,87273.0,0.1145692]
[1742905802196,0.3608,87290.0,87287.0,0.1145508]
[1742905802508,0.11540128,87288.0,87287.0,0.4185108]
[1742905802688,0.11472128,87288.0,87287.0,0.5152108]
[1742905803000,0.11536128,87288.0,87287.0,0.3252108]
[1742905803197,0.11536128,87288.0,87287.0,0.4152108]
[1742905803394,0.11536128,87288.0,87287.0,0.18734]
[1742905803594,0.14676128,87288.0,87287.0,0.18734]
[1742905804199,0.14676128,87288.0,87287.0,0.3018908]
[1742905804584,0.14676128,87288.0,87287.0,0.00064]
[1742905804798,0.1145613,87279.0,87278.0,0.0337]
[1742905804995,0.11516131,87279.0,87278.0,0.03434]
[1742905805201,0.21486131,87279.0,87278.0,0.0337]
[1742905806289,0.21486131,87279.0,87278.0,0.0377]
[1742905806591,0.21586131,87279.0,87278.0,0.0427]
[1742905806793,0.21586131,87279.0,87278.0,0.04334]
[1742905808101,0.21586131,87279.0,87278.0,0.1579026]
[1742905808296,0.21586131,87279.0,87278.0,0.04334]
[1742905808706,0.21586131,87279.0,87278.0,0.1898026]
[1742905808900,0.00160001,87279.0,87278.0,0.5598026]
[1742905809197,0.00160001,87279.0,87278.0,0.5920026]
[1742905809401,8e-05,87289.0,87287.0,0.1145508]
[1742905809586,0.11536128,87288.0,87287.0,0.5686708]
[1742905809792,0.00081178,87288.0,87287.0,0.6324708]
[1742905810100,0.11536128,87288.0,87287.0,0.6324708]
[1742905810298,0.11536128,87288.0,87287.0,0.2924708]
[1742905810695,0.11536128,87288.0,87287.0,0.17792]
[1742905810897,0.18056128,87288.0,87287.0,0.18092]
[1742905811104,0.18056128,87288.0,87287.0,0.06764]
[1742905811491,0.18056128,87288.0,87287.0,0.0668]
[1742905811808,0.18056128,87288.0,87287.0,0.0706]
[1742905812298,0.18056128,87288.0,87287.0,0.0068]
[1742905812501,0.18056128,87288.0,87287.0,0.006]
[1742905816603,0.18056128,87288.0,87287.0,0.2305508]
[1742905816810,0.00081178,87288.0,87287.0,0.34278621]
[1742905817122,0.0572665,87301.0,87300.0,0.1145337]
[1742905817403,8e-05,87307.0,87303.0,0.1145298]
[1742905817709,0.1156085,87304.0,87303.0,0.4553298]
[1742905817898,0.1149285,87304.0,87303.0,0.5225298]
[1742905818094,0.1157285,87304.0,87303.0,0.5225298]
[1742905818299,0.1157285,87304.0,87303.0,0.4725298]
[1742905818997,0.1157285,87304.0,87303.0,0.5425298]
[1742905819507,0.0022,87304.0,87303.0,0.5425298]
[1742905819708,0.0014,87304.0,87303.0,0.5425298]
[1742905820508,0.0024,87304.0,87303.0,0.5425298]
[1742905820708,0.0024,87304.0,87303.0,0.55393784]
[1742905821805,0.057654,87320.0,87319.0,0.1145088]
[1742905821806,0.0004,87320.0,87319.0,0.1145088]
[1742905822010,0.0326,87341.0,87332.0,0.1144918]
[1742905822206,0.00047151,87346.0,87335.0,0.4752878]
[1742905822397,0.0338,87345.0,87335.0,1.01813218]
[1742905822598,0.0338,87345.0,87335.0,1.0735078]
[1742905822799,0.0573223,87338.0,87335.0,0.8235078]
[1742905823001,8e-05,87338.0,87335.0,0.8235078]
[1742905823202,8e-05,87338.0,87335.0,0.9235078]
[1742905823710,0.1148865,87336.0,87335.0,0.4627078]
[1742905823897,0.1168865,87336.0,87335.0,0.1827078]
[1742905824095,0.1175665,87336.0,87335.0,0.1827078]
[1742905824307,0.1175665,87336.0,87335.0,0.29822]
[1742905824493,0.1195665,87336.0,87335.0,0.4127078]
[1742905825908,0.1195665,87336.0,87335.0,0.06822]
[1742905826111,0.1195665,87336.0,87335.0,0.00112]
[1742905826333,0.1144905,87333.0,87332.0,0.1144916]
[1742905826509,0.11557051,87333.0,87332.0,0.1499716]
[1742905827207,0.11557051,87333.0,87332.0,0.03548]
[1742905827408,0.11557051,87333.0,87332.0,0.00108]
[1742905827608,0.11657051,87333.0,87332.0,0.00108]
[1742905828111,0.00208001,87333.0,87332.0,0.5655718]
[1742905828300,0.001,87333.0,87332.0,0.9263718]
[1742905828501,0.0024,87336.0,87335.0,0.1144878]
[1742905828811,0.0024,87336.0,87335.0,0.7787678]
[1742905828999,0.0024,87336.0,87335.0,0.5987678]
[1742905829406,0.0004,87336.0,87335.0,0.5987678]
[1742905830011,0.0014,87336.0,87335.0,0.5987678]
[1742905830217,0.0014,87336.0,87335.0,2.0987678]
[1742905831111,0.1144854,87337.0,87336.0,0.114441]
[1742905831306,0.1144854,87337.0,87336.0,0.514441]
[1742905831512,0.1144854,87337.0,87336.0,0.581341]
[1742905832098,0.0572414,87339.0,87336.0,0.6385836]
[1742905832305,0.1144854,87337.0,87336.0,0.5813852]
[1742905832715,0.1154854,87337.0,87336.0,0.5813852]
[1742905833207,0.1144854,87337.0,87336.0,0.5813852]
[1742905833826,0.1164854,87337.0,87336.0,0.5813852]
[1742905834000,0.1174854,87337.0,87336.0,0.5813852]
[1742905834610,0.1144838,87339.0,87336.0,0.5813852]
[1742905834816,0.1144854,87337.0,87336.0,0.5813852]
[1742905835302,0.1458854,87337.0,87336.0,0.5813852]
[1742905835913,0.1458854,87337.0,87336.0,0.78543969]
[1742905837221,0.1458854,87337.0,87336.0,0.78651969]
[1742905837606,0.1478854,87337.0,87336.0,0.78651969]
[1742905838022,0.1478854,87337.0,87336.0,0.5824652]
[1742905838223,0.0334,87337.0,87336.0,0.5824652]
[1742905838526,0.1164852,87337.0,87336.0,0.5824652]
[1742905839027,0.1164852,87337.0,87336.0,0.43428]
[1742905839204,0.54496521,87337.0,87336.0,0.00108]
[1742905839409,0.1144878,87335.0,87334.0,0.34349836]
[1742905839710,0.114497,87328.0,87327.0,0.00017178]
[1742905839909,0.114518,87312.0,87310.0,0.1145205]
[1742905840119,0.115278,87312.0,87311.0,0.00121813]
[1742905840326,0.214978,87312.0,87311.0,0.11573743]
[1742905841010,0.214978,87312.0,87311.0,0.00121813]
[1742905841409,0.214978,87312.0,87311.0,0.04131813]
[1742905842016,0.214978,87312.0,87311.0,0.15583743]
[1742905842921,0.214978,87312.0,87311.0,0.15983743]
[1742905843121,0.214978,87312.0,87311.0,0.15483743]
[1742905843318,0.214978,87312.0,87311.0,0.15683743]
[1742905843622,0.215978,87312.0,87311.0,0.15283743]
[1742905844109,0.217978,87312.0,87311.0,0.42358347]
[1742905845914,0.215978,87312.0,87311.0,0.42358347]
[1742905846114,0.217978,87312.0,87311.0,0.42358347]
[1742905846322,0.10446,87312.0,87311.0,0.75358347]
[1742905846517,8e-05,87315.0,87314.0,0.1145154]
[1742905846719,8e-05,87315.0,87314.0,0.6253554]
[1742905847028,0.1145068,87321.0,87319.0,0.1145088]
[1742905847219,0.11467928,87320.0,87319.0,0.4545088]
[1742905847935,0.11467928,87320.0,87319.0,0.4552688]
[1742905848224,0.11467928,87320.0,87319.0,0.3552688]
[1742905848426,0.14857928,87320.0,87319.0,0.5952688]
[1742905848625,0.03407178,87320.0,87319.0,0.5952688]
[1742905848924,0.14857928,87320.0,87319.0,0.5952688]
[1742905849428,0.14857928,87320.0,87319.0,0.9060688]
[1742905849626,0.00017178,87320.0,87319.0,1.23949733]
[1742905849828,0.0328,87327.0,87324.0,0.0572511]
[1742905849829,0.1145015,87325.0,87324.0,0.0572511]
[1742905850029,0.1484004,87326.0,87325.0,0.114501]
[1742905850231,0.1484004,87326.0,87325.0,0.355261]
[1742905850426,0.1484004,87326.0,87325.0,0.455261]
[1742905850731,0.1484004,87326.0,87325.0,0.325261]
[1742905851425,0.1805004,87326.0,87325.0,0.325261]
[1742905851929,0.1805004,87326.0,87325.0,0.84968953]
[1742905853125,0.1805004,87326.0,87325.0,0.93968953]
[1742905853521,0.1805004,87326.0,87325.0,0.85068953]
[1742905854122,0.0572492,87327.0,87325.0,0.90793993]
[1742905854333,0.1717475,87327.0,87326.0,0.4752996]
[1742905854631,0.1717475,87327.0,87326.0,0.7060596]
[1742905855232,0.1717475,87327.0,87326.0,0.71771734]
[1742905855634,0.1717475,87327.0,87326.0,0.71871734]
[1742905856627,0.1717475,87327.0,87326.0,0.90871734]
[1742905856824,0.1717475,87327.0,87326.0,0.90971734]
[1742905857224,0.0572492,87327.0,87326.0,0.90971734]
[1742905857424,0.0572492,87327.0,87326.0,1.43314587]
[1742905857841,0.0572492,87327.0,87326.0,1.43114587]
[1742905858131,8e-05,87328.0,87327.0,0.1144983]
[1742905858320,0.114577,87328.0,87327.0,0.6252583]
[1742905860519,0.114577,87328.0,87327.0,0.6262583]
[1742905860726,0.114577,87328.0,87327.0,0.6272583]
[1742905860727,8e-05,87328.0,87327.0,0.6272583]
[1742905860933,0.11466098,87334.0,87333.0,0.1144905]
[1742905861134,0.11542098,87334.0,87333.0,0.7560505]
[1742905861938,0.11542098,87334.0,87333.0,0.7885505]
[1742905862129,0.11542098,87334.0,87333.0,0.6185505]
[1742905862329,0.11542098,87334.0,87333.0,0.50406]
[1742905862538,0.18152098,87334.0,87333.0,0.50406]
[1742905862738,0.18152098,87334.0,87333.0,0.6185505]
[1742905862938,0.00093178,87334.0,87333.0,0.7185505]
[1742905863239,0.00117178,87334.0,87333.0,1.02522715]
[1742905863435,0.11566098,87334.0,87333.0,1.02522715]
[1742905864140,0.11566098,87334.0,87333.0,0.92522715]
[1742905864337,0.15212098,87334.0,87333.0,0.92522715]
[1742905864734,0.18682098,87334.0,87333.0,0.92522715]
[1742905866336,0.18682098,87334.0,87333.0,0.27443665]
[1742905866536,0.1144996,87326.0,87325.0,0.00017178]
[1742905866735,0.1151396,87326.0,87325.0,0.00085178]
[1742905866936,0.1145167,87313.0,87312.0,0.034]
[1742905867740,0.2136567,87313.0,87312.0,0.0346]
[1742905868435,0.2128167,87313.0,87312.0,0.034]
[1742905869151,0.2128167,87313.0,87312.0,0.152518]
[1742905869334,0.2128167,87313.0,87312.0,0.187118]
[1742905869526,0.2128167,87313.0,87312.0,0.0726]
[1742905870443,0.2128167,87313.0,87312.0,0.0776]
[1742905870741,0.2128167,87313.0,87312.0,0.462118]
[1742905870944,0.2128167,87313.0,87312.0,0.192118]
[1742905871130,0.2138167,87313.0,87312.0,0.293118]
[1742905872137,0.2128167,87313.0,87312.0,0.294118]
[1742905872340,0.2128167,87313.0,87312.0,0.185118]
[1742905872535,0.2137367,87313.0,87312.0,0.285798]
[1742905872940,0.2137367,87313.0,87312.0,0.185798]
[1742905873144,0.2137367,87313.0,87312.0,0.425798]
[1742905873647,0.2137367,87313.0,87312.0,0.424798]
[1742905873846,0.2137367,87313.0,87312.0,0.425798]
[1742905874441,0.2137367,87313.0,87312.0,0.424798]
[1742905874641,0.03412,87313.0,87312.0,0.424798]
[1742905875143,0.03412,87313.0,87312.0,0.423798]
[1742905875448,0.00092,87313.0,87312.0,0.525798]
[1742905875643,0.1145117,87317.0,87316.0,0.1145128]
[1742905875942,0.00084,87317.0,87316.0,0.3551128]
[1742905876146,0.1145114,87319.0,87318.0,0.1717609]
[1742905876339,0.1145114,87317.0,87316.0,0.1250563]
[1742905876533,0.1153514,87317.0,87316.0,0.1257363]
[1742905876740,0.1153514,87317.0,87316.0,0.2157363]
[1742905877140,0.1153514,87317.0,87316.0,0.1257363]
[1742905877930,0.1153514,87317.0,87316.0,0.2357363]
[1742905878243,0.1153514,87317.0,87316.0,0.2929928]
[1742905878444,0.1496514,87317.0,87316.0,0.2929928]
[1742905878645,0.1814514,87317.0,87316.0,0.2929928]
[1742905879147,0.1814514,87317.0,87316.0,0.17848]
[1742905879847,0.1814514,87317.0,87316.0,0.17948]
[1742905880046,0.1814514,87317.0,87316.0,0.18048]
[1742905880246,0.1814514,87317.0,87316.0,0.2949928]
[1742905880648,0.1814514,87317.0,87316.0,0.2939928]
[1742905880942,0.1814514,87317.0,87316.0,0.2949928]
[1742905881151,0.1814514,87317.0,87316.0,0.18048]
[1742905881451,0.1814514,87317.0,87316.0,0.2929928]
[1742905883234,0.1814514,87317.0,87316.0,0.03528]
[1742905883438,0.1145154,87314.0,87313.0,0.0346]
[1742905883642,0.1145154,87314.0,87311.0,0.00045813]
[1742905883643,0.114518,87312.0,87311.0,0.00045813]
[1742905883848,0.11555801,87312.0,87311.0,0.00045813]
[1742905884143,0.21435801,87312.0,87311.0,0.11557743]
[1742905884447,0.21435801,87312.0,87311.0,0.00105813]
[1742905884652,0.21435801,87312.0,87311.0,0.11497743]
[1742905884850,0.21435801,87312.0,87311.0,0.11565743]
[1742905885549,0.21535801,87312.0,87311.0,0.14965743]
[1742905886052,0.21435801,87312.0,87311.0,0.14965743]
[1742905886236,0.21535801,87312.0,87311.0,0.14965743]
[1742905887043,0.10084001,87312.0,87311.0,0.35965743]
[1742905887249,0.10084001,87312.0,87311.0,0.39315743]
[1742905887553,0.14845801,87312.0,87311.0,0.39315743]
[1742905887753,0.14745801,87312.0,87311.0,0.21695743]
[1742905888238,0.18245801,87312.0,87311.0,0.21695743]
[1742905888434,0.18245801,87312.0,87311.0,0.32695743]
[1742905890440,0.18245801,87312.0,87311.0,0.21695743]
[1742905890645,0.14745801,87312.0,87311.0,0.31695743]
[1742905890851,0.14745801,87312.0,87311.0,0.21695743]
[1742905891052,0.14745801,87312.0,87311.0,0.43695743]
[1742905891253,0.14745801,87312.0,87311.0,0.21695743]
[1742905891444,0.11555801,87312.0,87311.0,0.43695743]
[1742905891639,0.11555801,87312.0,87311.0,0.30695743]
[1742905891952,0.00104001,87312.0,87311.0,0.42695743]
[1742905892252,8e-05,87313.0,87312.0,0.114518]
[1742905892451,0.1145103,87318.0,87317.0,0.1145114]
[1742905892647,0.11555031,87318.0,87317.0,0.2151114]
[1742905892847,0.11555031,87318.0,87317.0,0.2930114]
[1742905893865,0.11655031,87318.0,87317.0,0.2930114]
[1742905894346,0.11755031,87318.0,87317.0,0.2930114]
[1742905894655,0.11755031,87318.0,87317.0,0.1830114]
[1742905895155,0.11755031,87318.0,87317.0,0.2930114]
[1742905895546,0.11655031,87318.0,87317.0,0.2930114]
[1742905895851,0.11655031,87318.0,87317.0,0.2830114]
[1742905896451,0.11655031,87318.0,87317.0,0.2930114]
[1742905896655,0.11555031,87318.0,87317.0,0.2930114]
[1742905897057,0.12614229,87318.0,87317.0,0.2730114]
[1742905897353,0.16134229,87318.0,87317.0,0.1830114]
[1742905897552,0.16134229,87318.0,87317.0,0.2830114]
[1742905897854,0.16134229,87318.0,87317.0,0.1830114]
[1742905898040,0.16134229,87318.0,87317.0,0.4030114]
[1742905898243,0.16134229,87318.0,87317.0,0.1830114]
[1742905899154,0.16134229,87318.0,87317.0,0.1840114]
[1742905899554,0.16134229,87318.0,87317.0,0.2930114]
[1742905899851,0.16135098,87318.0,87317.0,0.1830114]
[1742905900054,0.16135098,87318.0,87317.0,0.2830114]
[1742905900254,0.16135098,87318.0,87317.0,0.1830114]
[1742905901156,0.16135098,87318.0,87317.0,0.2830114]
[1742905901454,0.16135098,87318.0,87317.0,0.1830114]
[1742905901938,0.16135098,87318.0,87317.0,0.2830114]
[1742905902142,0.19615098,87318.0,87317.0,0.1830114]
[1742905902647,0.19615098,87318.0,87317.0,0.2930114]
[1742905902837,0.19615098,87318.0,87317.0,0.4530114]
[1742905903449,0.19615658,87318.0,87317.0,0.4530114]
[1742905903952,0.19615658,87318.0,87317.0,0.4330114]
[1742905904155,0.19615658,87318.0,87317.0,0.1830114]
[1742905904454,0.19615658,87318.0,87317.0,0.2730114]
[1742905904757,0.19615658,87318.0,87317.0,0.1830114]
[1742905905357,0.19615615,87318.0,87317.0,0.2830114]
[1742905906750,0.19615615,87318.0,87317.0,0.1830114]
[1742905907361,0.19615615,87318.0,87317.0,0.2930114]
[1742905908873,0.36105178,87334.0,87330.0,0.0572458]
[1742905909049,0.19189513,87333.0,87332.0,0.1717363]
[1742905909243,0.0344,87333.0,87332.0,0.5023363]
[1742905909445,0.0336,87333.0,87332.0,0.4023363]
[1742905909854,0.03444,87333.0,87332.0,0.6323363]
[1742905910156,0.0336,87333.0,87332.0,0.4023363]
[1742905910359,0.0336,87333.0,87332.0,0.5123363]
[1742905910748,0.1480905,87333.0,87332.0,0.5123363]
[1742905910959,0.03536,87333.0,87332.0,0.52362537]
[1742905911261,0.0346,87333.0,87332.0,0.52362537]
[1742905911746,0.03536,87333.0,87332.0,0.52362537]
[1742905912063,0.00176,87333.0,87332.0,0.52362537]
[1742905912261,0.001,87333.0,87332.0,0.52362537]
[1742905912456,0.00054887,87347.0,87345.0,0.1144747]
[1742905912661,0.00054887,87347.0,87346.0,0.1144734]
[1742905912864,0.00054887,87347.0,87346.0,0.6351534]
[1742905913659,0.00054887,87347.0,87346.0,0.64365797]
[1742905914463,0.00354887,87347.0,87346.0,0.64365797]
[1742905914958,0.00354887,87347.0,87346.0,0.63365797]
[1742905915154,0.00354887,87347.0,87346.0,0.69365797]
[1742905915763,0.00554887,87347.0,87346.0,0.69365797]
[1742905916259,0.00554887,87347.0,87346.0,0.40365797]
[1742905916456,0.03944887,87347.0,87346.0,0.40365797]
[1742905916956,0.07134887,87347.0,87346.0,0.40365797]
[1742905917763,0.18582097,87347.0,87346.0,0.40365797]
[1742905918868,0.18582097,87347.0,87346.0,0.00068]
[1742905919159,0.1144839,87338.0,87337.0,0.3199295]
[1742905919358,0.1153239,87338.0,87337.0,0.4405295]
[1742905919559,0.2173239,87338.0,87337.0,0.4405295]
[1742905921962,0.2173239,87338.0,87337.0,0.4726295]
[1742905922263,0.2173239,87338.0,87337.0,0.2671852]
[1742905922566,0.10284,87338.0,87337.0,0.2671852]
[1742905922761,0.03534,87338.0,87337.0,0.6279852]
[1742905922968,0.03304887,87347.0,87337.0,0.6583]
[1742905923155,0.1472743,87346.0,87345.0,0.1144747]
[1742905923356,0.1480743,87346.0,87345.0,0.2144747]
[1742905923563,0.1811743,87346.0,87345.0,0.2152347]
[1742905923758,0.1811743,87346.0,87345.0,0.1152347]
[1742905924063,0.1811743,87346.0,87345.0,0.2244747]
[1742905924265,0.1811743,87346.0,87345.0,0.2250747]
[1742905924472,0.1831743,87346.0,87345.0,0.2250747]
[1742905924865,0.1500743,87346.0,87345.0,0.2250747]
[1742905925061,0.1520743,87346.0,87345.0,0.2250747]
[1742905925262,0.1520743,87346.0,87345.0,0.1453]
[1742905925570,0.1861743,87346.0,87345.0,0.1453]
[1742905926269,0.0572413,87339.0,87323.0,0.20561608]
[1742905926470,0.1145023,87324.0,87323.0,0.32011968]
[1742905926767,0.1154223,87324.0,87323.0,0.20629608]
[1742905926967,0.1833223,87324.0,87323.0,0.20629608]
[1742905927475,0.1833223,87324.0,87323.0,0.32079968]
[1742905927661,0.1833223,87324.0,87323.0,0.11835538]
[1742905928662,0.1843223,87324.0,87323.0,0.11535538]
[1742905928968,0.1843223,87324.0,87323.0,0.22535538]
[1742905929564,0.2181223,87324.0,87323.0,0.11535538]
[1742905929974,0.2191223,87324.0,87323.0,0.11535538]
[1742905930361,0.2181223,87324.0,87323.0,0.11535538]
[1742905930671,0.2191223,87324.0,87323.0,0.11535538]
[1742905931472,0.2181223,87324.0,87323.0,0.11535538]
[1742905931668,0.2191223,87324.0,87323.0,0.11535538]
[1742905932067,0.114518,87312.0,87311.0,0.00045813]
[1742905932368,0.11563801,87312.0,87311.0,0.11565743]
[1742905932574,0.11563801,87312.0,87311.0,0.11617743]
[1742905932877,0.21733801,87312.0,87311.0,0.00165813]
[1742905933071,0.21733801,87312.0,87311.0,0.00045813]
[1742905933270,0.57813801,87312.0,87311.0,0.00245813]
[1742905933670,0.57813801,87312.0,87311.0,0.11757743]
[1742905934763,0.57813801,87312.0,87311.0,0.11957743]
[1742905935179,0.57813801,87312.0,87311.0,0.00505813]
[1742905935374,0.57813801,87312.0,87311.0,0.00445813]
[1742905936075,0.57813801,87312.0,87311.0,0.00505813]
[1742905936479,0.57813801,87312.0,87311.0,0.11897743]
[1742905936679,0.57813801,87312.0,87311.0,0.11965743]
[1742905937976,0.57813801,87312.0,87311.0,0.34965743]
[1742905938176,0.57813801,87312.0,87311.0,0.11965743]
[1742905938374,0.57813801,87312.0,87311.0,0.37965743]
[1742905938574,0.57813801,87312.0,87311.0,0.00513813]
[1742905938887,0.57813801,87312.0,87311.0,0.11965743]
[1742905939379,0.57813801,87312.0,87311.0,0.15145743]
[1742905939574,0.57813801,87312.0,87311.0,0.41145743]
[1742905940077,0.57813801,87312.0,87311.0,0.15145743]
[1742905941080,0.57813801,87312.0,87311.0,0.03693813]
[1742905941273,0.57813801,87312.0,87311.0,0.03625813]
[1742905941781,0.57813801,87312.0,87311.0,0.03685813]
[1742905942277,0.57813801,87312.0,87311.0,0.07145813]
[1742905944379,0.57813801,87312.0,87311.0,0.07085813]
[1742905944880,0.57813801,87312.0,87311.0,0.07145813]
[1742905945382,0.57813801,87312.0,87311.0,0.07085813]
[1742905945570,0.57813801,87312.0,87311.0,0.07145813]
[1742905946579,0.57813801,87312.0,87311.0,0.07085813]
[1742905946779,0.57813801,87312.0,87311.0,0.07149813]
[1742905947567,0.57813801,87312.0,87311.0,0.07085813]
[1742905948581,0.57813801,87312.0,87311.0,0.07197813]
[1742905949680,0.57813801,87312.0,87311.0,0.18649743]
[1742905950579,0.57813801,87312.0,87311.0,0.27649743]
[1742905950782,0.57813801,87312.0,87311.0,0.18649743]
[1742905951074,0.57813801,87312.0,87311.0,0.28649743]
[1742905951075,0.47643801,87312.0,87311.0,0.28649743]
[1742905951277,0.11412001,87312.0,87311.0,0.28649743]
[1742905951465,0.227518,87312.0,87311.0,0.28649743]
[1742905951665,0.22863801,87312.0,87311.0,0.18649743]
[1742905951875,0.29373801,87312.0,87311.0,0.18649743]
[1742905953784,0.32583801,87312.0,87311.0,0.07197813]
[1742905954872,0.32583801,87312.0,87311.0,0.18649743]
[1742905955077,0.32583801,87312.0,87311.0,0.07197813]
[1742905955285,0.32583801,87312.0,87311.0,0.18649743]
[1742905957483,0.29373801,87312.0,87311.0,0.29649743]
[1742905958567,0.29373801,87312.0,87311.0,0.18197813]
[1742905959272,0.29373801,87312.0,87311.0,0.29649743]
[1742905959667,0.29373801,87312.0,87311.0,0.18197813]
[1742905959883,0.29373801,87312.0,87311.0,0.29649743]
[1742905961068,0.29373801,87312.0,87311.0,0.18197813]
[1742905961281,0.29373801,87312.0,87311.0,0.29649743]
[1742905961970,0.29373801,87312.0,87311.0,0.18197813]
[1742905962685,0.29373801,87312.0,87311.0,0.15017813]
[1742905962887,0.29373801,87312.0,87302.0,0.2733551]
[1742905962888,0.0572627,87307.0,87302.0,0.2733551]
[1742905963085,0.4753285,87304.0,87303.0,0.00077178]
[1742905963270,0.4768485,87304.0,87303.0,0.00077178]
[1742905963580,0.5427485,87304.0,87303.0,0.00077178]
[1742905964184,0.5427485,87304.0,87303.0,0.00777178]
[1742905967988,0.5427485,87304.0,87303.0,0.04037178]
[1742905968389,0.5427485,87304.0,87303.0,0.03977178]
[1742905968586,0.5427485,87304.0,87303.0,0.04037178]
[1742905968792,0.5427485,87304.0,87303.0,0.03977178]
[1742905969185,0.5427485,87304.0,87303.0,0.04041178]
[1742905969881,0.5427485,87304.0,87303.0,0.03977178]
[1742905970087,0.5427485,87304.0,87303.0,0.04037178]
[1742905970986,0.5427485,87304.0,87303.0,0.03977178]
[1742905971186,0.5427485,87304.0,87303.0,0.04037178]
[1742905971583,0.5427485,87304.0,87303.0,0.03977178]
[1742905971797,0.5427485,87304.0,87303.0,0.04037178]
[1742905971982,0.5427485,87304.0,87303.0,0.03977178]
[1742905973194,0.5427485,87304.0,87303.0,0.04037178]
[1742905975090,0.5427485,87304.0,87303.0,0.03977178]
[1742905975483,0.5427485,87304.0,87303.0,0.04037178]
[1742905975789,0.5427485,87304.0,87303.0,0.15037178]
[1742905975790,0.1490485,87304.0,87303.0,0.15037178]
[1742905975996,0.1816485,87304.0,87303.0,0.15037178]
[1742905976291,0.2620085,87304.0,87303.0,0.26490158]
[1742905976883,0.2620085,87304.0,87303.0,0.18187178]
[1742905977089,0.2927085,87304.0,87303.0,0.18187178]
[1742905977305,0.2620085,87304.0,87303.0,0.29640158]
[1742905978693,0.2290085,87304.0,87303.0,0.29640158]
[1742905979092,0.2290085,87304.0,87303.0,0.18640158]
[1742905979402,0.2290085,87304.0,87303.0,0.27640158]
[1742905980795,0.2290085,87304.0,87303.0,0.18640158]
[1742905981101,0.2290085,87304.0,87303.0,0.07187178]
[1742905981297,0.2945085,87304.0,87303.0,0.07127178]
[1742905981492,0.2945085,87304.0,87303.0,0.07187178]
[1742905981889,0.2945085,87304.0,87303.0,0.07127178]
[1742905982084,0.2945085,87304.0,87303.0,0.07187178]
[1742905982284,0.2945085,87304.0,87303.0,0.07127178]
[1742905982285,0.6553085,87304.0,87303.0,0.07127178]
[1742905982885,0.6553085,87304.0,87303.0,0.03867178]
[1742905983092,0.1145377,87297.0,87296.0,0.0326]
[1742905983403,0.4768177,87297.0,87296.0,0.0438]
[1742905983601,0.4768177,87297.0,87296.0,0.0106]
[1742905983910,0.1145429,87293.0,87292.0,0.0332]
[1742905984105,0.22914291,87293.0,87292.0,0.0332]
[1742905984292,0.29134291,87293.0,87292.0,0.0332]
[1742905984696,0.1145442,87292.0,87285.0,0.0326]
[1742905984900,0.11618421,87292.0,87286.0,0.0332]
[1742905985098,0.18538421,87292.0,87286.0,0.0332]
[1742905985398,0.19671299,87292.0,87286.0,0.0332]
[1742905985907,0.1145508,87287.0,87286.0,0.0332]
[1742905986088,0.47699081,87287.0,87286.0,0.0332]
[1742905986293,0.58569081,87287.0,87286.0,0.0332]
[1742905988397,0.58669081,87287.0,87286.0,0.0372]
[1742905988597,0.58769081,87287.0,87286.0,0.0372]
[1742905989002,0.58769081,87287.0,87286.0,0.1272]
[1742905989401,0.55149081,87287.0,87286.0,0.2785521]
[1742905989603,0.55149081,87287.0,87286.0,0.164]
[1742905989903,0.51629081,87287.0,87286.0,0.364]
[1742905990999,0.47899081,87287.0,87286.0,0.364]
[1742905992503,0.47899081,87287.0,87286.0,0.4785521]
[1742905992808,0.47899081,87287.0,87286.0,0.7285521]
[1742905993801,0.47899081,87287.0,87286.0,0.614]
[1742905994808,0.47899081,87287.0,87286.0,0.7285521]
[1742905995114,0.47899081,87287.0,87286.0,0.614]
[1742905995306,0.54989081,87287.0,87286.0,0.614]
[1742905997815,0.47899081,87287.0,87286.0,0.614]
[1742905998414,0.47799081,87287.0,87286.0,0.61]
[1742905998710,0.11719081,87287.0,87286.0,1.0453521]
[1742905999010,0.1165508,87287.0,87286.0,0.4745521]
[1742906000002,0.1155508,87287.0,87286.0,0.4755521]
[1742906001412,0.1155508,87287.0,87286.0,0.4765521]
[1742906001413,0.1145508,87287.0,87286.0,0.4765521]
[1742906001914,0.1145508,87287.0,87286.0,0.4755521]
[1742906002107,0.1145508,87287.0,87286.0,0.4765521]
[1742906002305,0.1162308,87287.0,87286.0,0.4765521]
[1742906003314,0.1509308,87287.0,87286.0,0.4765521]
[1742906004903,0.1853308,87287.0,87286.0,0.071]
[1742906005119,0.1853308,87287.0,87286.0,0.072]
[1742906005516,0.1853308,87287.0,87286.0,0.07]
[1742906005818,0.1853308,87287.0,87286.0,0.072]